[Event "44th Chess Olympiad Women 2022"]
[Site "Chennai"]
[Date "2022.08.07"]
[Round "9.57"]
[White "De la Riva Real, Jana"]
[Black "Reitumetse Taioe"]
[Result "0-1"]
[WhiteElo "1167"]
[BlackElo "1180"]
[Annotator "NA RC"]
[PlyCount "60"]
[EventDate "2022.??.??"]
[TimeControl "60"]

1. e4 {[%emt 0:00:03]} e6 {[%emt 0:00:08]} 2. d3 {[%emt 0:00:13]} d5 {[%emt 0:
00:00]} 3. Nd2 {[%emt 0:00:24]} c5 {[%emt 0:00:11]} 4. g3 {[%emt 0:01:02]} Nc6
{[%emt 0:00:13]} 5. Bg2 {[%emt 0:00:22]} Nf6 {[%emt 0:02:35]} 6. Ngf3 {[%emt 0:
00:00]} Be7 {[%emt 0:00:33]} 7. O-O {[%emt 0:00:53]} O-O {[%emt 0:00:06]} 8. e5
{[%emt 0:01:30]} Nd7 {[%emt 0:00:41]} 9. Re1 {[%emt 0:00:46]} Qc7 {[%emt 0:00:
00]} 10. Qe2 {[%emt 0:01:03]} f6 {[%emt 0:03:17]} 11. exf6 {[%emt 0:02:47]}
Nxf6 {[%emt 0:00:08]} 12. Nf1 {[%emt 0:02:42]} Bd6 {[%emt 0:02:57]} 13. h4 {
[%emt 0:10:14]} Bd7 {[%emt 0:05:13]} 14. N1h2 {[%emt 0:05:14]} Rae8 {[%emt 0:
00:00]} 15. Bg5 {[%emt 0:06:18]} e5 {[%emt 0:06:51]} 16. Bxf6 {[%emt 0:02:09]}
Rxf6 {[%emt 0:00:16]} 17. Ng5 {[%emt 0:06:22]} Ne7 {[%emt 0:06:31]} 18. Ng4 {
[%emt 0:06:20]} Bxg4 {[%emt 0:01:54]} 19. Qxg4 {[%emt 0:00:16]} Qc8 {[%emt 0:
00:00]} 20. Qh5 {[%emt 0:13:17]} h6 {[%emt 0:03:26]} 21. Bh3 {[%emt 0:06:03]}
Nf5 {[%emt 0:03:31]} 22. Bxf5 {[%emt 0:20:47]} Rxf5 {[%emt 0:01:22]} 23. g4 {
[%emt 0:03:22]} Rf4 {[%emt 0:00:41]} 24. Nh3 {[%emt 0:03:19]} Rxg4+ {[%emt 0:
00:00]} 25. Kh1 {[%emt 0:02:03]} Rf8 {[%emt 0:03:17]} 26. Rf1 {[%emt 0:02:07]}
Rd4 {[%emt 0:02:12]} 27. Ng1 {[%emt 0:02:40]} Rff4 {[%emt 0:00:42]} 28. Nf3 {
[%emt 0:01:02]} Qh3+ {[%emt 0:00:23]} 29. Nh2 {[%emt 0:00:31]} Rxh4 {[%emt 0:
00:00]} 30. Qe8+ {[%emt 0:00:31]} Kh7 {[%emt 0:01:21]} 0-1

[Event "44th Chess Olympiad Women 2022"]
[Site "Chennai"]
[Date "2022.08.07"]
[Round "9.57"]
[White "Malehloa, Likhomo"]
[Black "Henderson de La Fuente, Andrea"]
[Result "0-1"]
[WhiteElo "1322"]
[BlackElo "1962"]
[Annotator "NA"]
[PlyCount "96"]
[EventDate "2022.??.??"]
[TimeControl "60"]

1. d4 {[%emt 0:00:15]} Nf6 {[%emt 0:00:07]} 2. Nf3 {[%emt 0:00:11]} b6 {
[%emt 0:00:27]} 3. c4 {[%emt 0:01:21]} Bb7 {[%emt 0:00:19]} 4. g3 {[%emt 0:00:
00]} g6 {[%emt 0:00:46]} 5. Bg2 {[%emt 0:00:22]} Bg7 {[%emt 0:00:43]} 6. Nc3 {
[%emt 0:02:24]} d6 {[%emt 0:01:52]} 7. Bf4 {[%emt 0:02:20]} Nbd7 {[%emt 0:00:
00]} 8. O-O {[%emt 0:01:41]} O-O {[%emt 0:06:47]} 9. Qd2 {[%emt 0:06:06]} Re8 {
[%emt 0:17:16]} 10. Rfe1 {[%emt 0:07:11]} e5 {[%emt 0:05:29]} 11. dxe5 {
[%emt 0:01:51]} dxe5 {[%emt 0:00:11]} 12. Bh6 {[%emt 0:01:22]} e4 {[%emt 0:00:
00]} 13. Bxg7 {[%emt 0:10:54]} Kxg7 {[%emt 0:02:17]} 14. Nh4 {[%emt 0:01:36]}
Ne5 {[%emt 0:16:15]} 15. Qxd8 {[%emt 0:04:37]} Raxd8 {[%emt 0:00:04]} 16. b3 {
[%emt 0:00:25]} Rd2 {[%emt 0:06:24]} 17. Red1 {[%emt 0:02:55]} Red8 {[%emt 0:
00:00]} 18. Kf1 {[%emt 0:01:42]} Neg4 {[%emt 0:05:10]} 19. h3 {[%emt 0:02:39]}
Nh6 {[%emt 0:01:27]} 20. Bh1 {[%emt 0:00:17]} g5 {[%emt 0:00:21]} 21. Ng2 {
[%emt 0:00:20]} e3 {[%emt 0:06:05]} 22. Rxd2 {[%emt 0:03:13]} exd2 {[%emt 0:00:
00]} 23. Rd1 {[%emt 0:02:41]} Be4 {[%emt 0:05:14]} 24. f3 {[%emt 0:06:40]} Bc2
{[%emt 0:00:11]} 25. Ne3 {[%emt 0:00:07]} Bxd1 {[%emt 0:00:05]} 26. Nexd1 {
[%emt 0:00:13]} Nf5 {[%emt 0:01:33]} 27. Kf2 {[%emt 0:00:21]} a6 {[%emt 0:00:
00]} 28. e4 {[%emt 0:01:07]} Nd4 {[%emt 0:01:55]} 29. Bg2 {[%emt 0:01:23]} c6 {
[%emt 0:01:32]} 30. Nb1 {[%emt 0:00:59]} Nc2 {[%emt 0:00:17]} 31. g4 {[%emt 0:
00:00]} Nb4 {[%emt 0:01:36]} 32. Nbc3 {[%emt 0:01:03]} Nd7 {[%emt 0:01:22]} 33.
Ke2 {[%emt 0:01:09]} Ne5 {[%emt 0:00:12]} 34. a3 {[%emt 0:00:26]} Nbd3 {
[%emt 0:00:46]} 35. Ke3 {[%emt 0:01:30]} Ne1 {[%emt 0:02:00]} 36. Bh1 {[%emt 0:
00:00]} Nc2+ {[%emt 0:00:34]} 37. Ke2 {[%emt 0:00:25]} Nxa3 {[%emt 0:00:34]}
38. Na4 {[%emt 0:00:31]} b5 {[%emt 0:00:32]} 39. cxb5 {[%emt 0:00:12]} axb5 {
[%emt 0:00:21]} 40. Nc5 {[%emt 0:00:45]} Nc2 {[%emt 0:00:13]} 41. Bg2 {[%emt 0:
00:00]} Nd4+ {[%emt 0:04:21]} 42. Ke3 {[%emt 0:00:00]} Nxb3 {[%emt 0:00:52]}
43. Na6 {[%emt 0:00:00]} Rd3+ {[%emt 0:01:36]} 44. Ke2 {[%emt 0:00:00]} c5 {
[%emt 0:00:40]} 45. Nc7 {[%emt 0:00:00]} Nd4+ {[%emt 0:00:22]} 46. Kf2 {
[%emt 0:00:00]} c4 {[%emt 0:02:28]} 47. Nd5 {[%emt 0:00:00]} Rb3 {[%emt 0:00:
00]} 48. N5c3 {[%emt 0:00:00]} b4 {[%emt 0:00:17]} 0-1

[Event "44th Chess Olympiad Women 2022"]
[Site "Chennai"]
[Date "2022.08.07"]
[Round "9.58"]
[White "Marochkina, Nadezhda Valerevna"]
[Black "Raharimanana, Faratiana"]
[Result "1/2-1/2"]
[WhiteElo "1687"]
[BlackElo "1707"]
[Annotator "NA RC"]
[PlyCount "93"]
[EventDate "2022.??.??"]
[TimeControl "60"]

1. d4 {[%emt 0:00:06]} Nf6 {[%emt 0:00:09]} 2. c4 {[%emt 0:00:06]} e6 {[%emt 0:
00:00]} 3. Nf3 {[%emt 0:00:15]} b6 {[%emt 0:00:21]} 4. Bg5 {[%emt 0:00:23]} Bb7
{[%emt 0:00:24]} 5. e3 {[%emt 0:00:36]} Bb4+ {[%emt 0:01:25]} 6. Nc3 {[%emt 0:
00:00]} d6 {[%emt 0:00:33]} 7. Qa4+ {[%emt 0:03:21]} Nc6 {[%emt 0:08:11]} 8. d5
{[%emt 0:00:32]} Bxc3+ {[%emt 0:00:41]} 9. bxc3 {[%emt 0:00:12]} Qd7 {[%emt 0:
00:00]} 10. dxc6 {[%emt 0:00:47]} Bxc6 {[%emt 0:00:16]} 11. Qd1 {[%emt 0:01:15]
} Ne4 {[%emt 0:00:34]} 12. Rc1 {[%emt 0:02:45]} f6 {[%emt 0:01:51]} 13. Bh4 {
[%emt 0:00:44]} g5 {[%emt 0:00:57]} 14. Bg3 {[%emt 0:00:09]} h5 {[%emt 0:00:29]
} 15. h4 {[%emt 0:01:00]} g4 {[%emt 0:00:25]} 16. Nd4 {[%emt 0:02:05]} Ba4 {
[%emt 0:01:09]} 17. Qd3 {[%emt 0:01:36]} f5 {[%emt 0:00:25]} 18. Nb3 {[%emt 0:
00:00]} O-O-O {[%emt 0:00:50]} 19. Bf4 {[%emt 0:08:47]} Rdg8 {[%emt 0:02:24]}
20. c5 {[%emt 0:09:07]} e5 {[%emt 0:03:44]} 21. Qa6+ {[%emt 0:01:23]} Kb8 {
[%emt 0:01:52]} 22. cxb6 {[%emt 0:02:55]} cxb6 {[%emt 0:00:16]} 23. Bg3 {
[%emt 0:06:41]} Bc6 {[%emt 0:04:23]} 24. Bc4 {[%emt 0:07:09]} Rf8 {[%emt 0:00:
00]} 25. Bd3 {[%emt 0:11:30]} Nxg3 {[%emt 0:01:22]} 26. fxg3 {[%emt 0:00:07]}
Bxg2 {[%emt 0:00:08]} 27. Rh2 {[%emt 0:00:26]} Bb7 {[%emt 0:02:52]} 28. Bb5 {
[%emt 0:03:07]} Qe7 {[%emt 0:01:56]} 29. Qa4 {[%emt 0:01:15]} Qc7 {[%emt 0:00:
00]} 30. Rf2 {[%emt 0:03:15]} Rf6 {[%emt 0:00:30]} 31. Qc4 {[%emt 0:03:10]} Qe7
{[%emt 0:01:51]} 32. Ba6 {[%emt 0:04:45]} Ba8 {[%emt 0:02:57]} 33. Na5 {
[%emt 0:04:54]} d5 {[%emt 0:00:35]} 34. Qb5 {[%emt 0:01:20]} f4 {[%emt 0:07:16]
} 35. exf4 {[%emt 0:01:25]} exf4+ {[%emt 0:00:23]} 36. Re2 {[%emt 0:00:08]} Re6
{[%emt 0:00:17]} 37. Nc6+ {[%emt 0:02:59]} Bxc6 {[%emt 0:00:22]} 38. Qxc6 {
[%emt 0:00:10]} Rxe2+ {[%emt 0:01:35]} 39. Bxe2 {[%emt 0:00:11]} f3 {[%emt 0:
00:00]} 40. Rc2 {[%emt 0:00:20]} Re8 {[%emt 0:00:50]} 41. Qxd5 {[%emt 0:33:06]}
fxe2 {[%emt 0:30:58]} 42. Qd3 {[%emt 0:02:03]} Qe3 {[%emt 0:21:48]} 43. Qd6+ {
[%emt 0:03:14]} Kb7 {[%emt 0:00:37]} 44. Qd7+ {[%emt 0:00:18]} Ka6 {[%emt 0:00:
00]} 45. Qa4+ {[%emt 0:00:07]} Kb7 {[%emt 0:00:05]} 46. Qd7+ {[%emt 0:00:05]}
Kb8 {[%emt 0:00:30]} 47. Qd6+ {[%emt 0:00:07]} 1/2-1/2

[Event "44th Chess Olympiad Women 2022"]
[Site "Chennai"]
[Date "2022.08.07"]
[Round "9.58"]
[White "Razafindrabiaza, Christine"]
[Black "Sy Mame, Binta"]
[Result "1/2-1/2"]
[WhiteElo "1635"]
[BlackElo "1256"]
[Annotator "NA COMBH"]
[PlyCount "148"]
[EventDate "2022.??.??"]
[TimeControl "60"]

1. c4 {[%emt 0:00:12]} d6 {[%emt 0:00:58]} 2. Nc3 {[%emt 0:00:26]} e5 {[%emt 0:
00:00]} 3. d3 {[%emt 0:00:16]} Nc6 {[%emt 0:01:15]} 4. Nf3 {[%emt 0:00:39]} Nf6
{[%emt 0:01:06]} 5. e3 {[%emt 0:00:35]} b6 {[%emt 0:00:45]} 6. Be2 {[%emt 0:00:
00]} Be7 {[%emt 0:01:05]} 7. O-O {[%emt 0:00:32]} O-O {[%emt 0:00:08]} 8. Nd2 {
[%emt 0:00:55]} Bb7 {[%emt 0:00:48]} 9. a3 {[%emt 0:00:52]} Rb8 {[%emt 0:01:10]
} 10. b4 {[%emt 0:01:29]} Qe8 {[%emt 0:00:58]} 11. Bb2 {[%emt 0:01:25]} Bd8 {
[%emt 0:00:34]} 12. Nd5 {[%emt 0:00:09]} Qe6 {[%emt 0:01:48]} 13. e4 {[%emt 0:
00:00]} Ne7 {[%emt 0:01:13]} 14. h3 {[%emt 0:00:43]} Ng6 {[%emt 0:00:42]} 15.
Nf3 {[%emt 0:00:28]} Qe8 {[%emt 0:00:31]} 16. Rc1 {[%emt 0:00:54]} c6 {[%emt 0:
00:00]} 17. Ne3 {[%emt 0:00:42]} Nd7 {[%emt 0:03:36]} 18. Nf5 {[%emt 0:01:09]}
Be7 {[%emt 0:01:04]} 19. d4 {[%emt 0:02:49]} c5 {[%emt 0:00:55]} 20. d5 {
[%emt 0:00:31]} Nf6 {[%emt 0:00:31]} 21. Bd3 {[%emt 0:00:27]} Bc8 {[%emt 0:00:
00]} 22. b5 {[%emt 0:01:36]} Bd7 {[%emt 0:00:38]} 23. Re1 {[%emt 0:00:59]} Qc8
{[%emt 0:00:42]} 24. Qc2 {[%emt 0:01:07]} Re8 {[%emt 0:02:05]} 25. Bc3 {
[%emt 0:02:39]} Nh5 {[%emt 0:00:59]} 26. Bd2 {[%emt 0:01:25]} Nhf4 {[%emt 0:00:
00]} 27. Bf1 {[%emt 0:01:10]} Qd8 {[%emt 0:08:37]} 28. g3 {[%emt 0:01:56]} Nh5
{[%emt 0:02:23]} 29. Nh2 {[%emt 0:00:24]} Ra8 {[%emt 0:05:44]} 30. a4 {[%emt 0:
00:00]} Nf6 {[%emt 0:00:45]} 31. Qd3 {[%emt 0:02:39]} Qc8 {[%emt 0:00:53]} 32.
g4 {[%emt 0:01:01]} a6 {[%emt 0:01:37]} 33. Bg5 {[%emt 0:01:26]} Bxf5 {[%emt 0:
00:00]} 34. gxf5 {[%emt 0:01:52]} Nf4 {[%emt 0:00:39]} 35. Bxf4 {[%emt 0:00:35]
} exf4 {[%emt 0:00:40]} 36. Qf3 {[%emt 0:00:39]} axb5 {[%emt 0:02:40]} 37. axb5
{[%emt 0:00:15]} Nd7 {[%emt 0:01:23]} 38. Qxf4 {[%emt 0:00:49]} Ne5 {[%emt 0:
00:00]} 39. Ng4 {[%emt 0:00:26]} Bf6 {[%emt 0:00:20]} 40. Nxf6+ {[%emt 0:00:50]
} gxf6 {[%emt 0:00:17]} 41. Re3 {[%emt 0:30:16]} Kh8 {[%emt 0:30:15]} 42. Qh4 {
[%emt 0:00:43]} Rg8+ {[%emt 0:00:39]} 43. Kh1 {[%emt 0:00:23]} Qd8 {[%emt 0:00:
00]} 44. f4 {[%emt 0:02:26]} Nd7 {[%emt 0:08:10]} 45. Qh5 {[%emt 0:03:24]} Qf8
{[%emt 0:00:42]} 46. Re2 {[%emt 0:01:03]} Qe7 {[%emt 0:08:06]} 47. Qf3 {
[%emt 0:00:54]} Rg7 {[%emt 0:00:53]} 48. Rg2 {[%emt 0:00:12]} Rag8 {[%emt 0:00:
00]} 49. Rxg7 {[%emt 0:00:14]} Rxg7 {[%emt 0:00:24]} 50. Bd3 {[%emt 0:01:38]}
Qf8 {[%emt 0:05:06]} 51. Rg1 {[%emt 0:01:31]} Rxg1+ {[%emt 0:00:44]} 52. Kxg1 {
[%emt 0:00:09]} Qg7+ {[%emt 0:00:19]} 53. Kh2 {[%emt 0:00:07]} Nf8 {[%emt 0:00:
00]} 54. Bf1 {[%emt 0:00:27]} h6 {[%emt 0:01:51]} 55. Qa3 {[%emt 0:00:51]} h5 {
[%emt 0:03:16]} 56. Qf3 {[%emt 0:00:47]} h4 {[%emt 0:00:52]} 57. Qh5+ {[%emt 0:
00:00]} Qh7 {[%emt 0:01:18]} 58. Qf3 {[%emt 0:00:29]} Qh6 {[%emt 0:00:54]} 59.
Qg4 {[%emt 0:00:52]} Nh7 {[%emt 0:00:56]} 60. Bg2 {[%emt 0:00:52]} Nf8 {
[%emt 0:03:04]} 61. Qf3 {[%emt 0:01:49]} Nh7 {[%emt 0:00:15]} 62. Qe3 {[%emt 0:
00:00]} Nf8 {[%emt 0:00:14]} 63. Kg1 {[%emt 0:00:51]} Nh7 {[%emt 0:00:40]} 64.
Qc1 {[%emt 0:00:13]} Nf8 {[%emt 0:00:03]} 65. Qa1 {[%emt 0:00:26]} Qxf4 {
[%emt 0:00:22]} 66. Qxf6+ {[%emt 0:00:15]} Kg8 {[%emt 0:00:59]} 67. Qc3 {
[%emt 0:02:55]} Nd7 {[%emt 0:00:40]} 68. Qa3 {[%emt 0:00:48]} Ne5 {[%emt 0:00:
00]} 69. Qc3 {[%emt 0:01:19]} Qg3 {[%emt 0:01:53]} 70. Qa1 {[%emt 0:02:01]}
Nf3+ {[%emt 0:00:10]} 71. Kf1 {[%emt 0:00:18]} Nd2+ {[%emt 0:01:41]} 72. Kg1 {
[%emt 0:00:13]} Nf3+ {[%emt 0:02:41]} 73. Kf1 {[%emt 0:00:12]} Nd2+ {[%emt 0:
00:00]} 74. Kg1 {[%emt 0:00:25]} Nf3+ {[%emt 0:02:43]} 1/2-1/2

[Event "44th Chess Olympiad Women 2022"]
[Site "Chennai"]
[Date "2022.08.07"]
[Round "9.58"]
[White "Sy, Mariama"]
[Black "Rakotoniaina Tiana Johanna"]
[Result "0-1"]
[WhiteElo "1211"]
[BlackElo "1529"]
[Annotator "NA RC"]
[PlyCount "66"]
[EventDate "2022.??.??"]
[TimeControl "60"]

1. e4 {[%emt 0:00:03]} e5 {[%emt 0:00:24]} 2. Nf3 {[%emt 0:00:38]} Nc6 {
[%emt 0:00:13]} 3. d4 {[%emt 0:02:59]} exd4 {[%emt 0:00:30]} 4. Nxd4 {[%emt 0:
00:00]} Bc5 {[%emt 0:00:12]} 5. Be3 {[%emt 0:01:04]} Qf6 {[%emt 0:00:23]} 6. c3
{[%emt 0:01:43]} d6 {[%emt 0:02:07]} 7. Bd3 {[%emt 0:02:54]} Bd7 {[%emt 0:00:
00]} 8. Bc2 {[%emt 0:01:41]} Nge7 {[%emt 0:00:36]} 9. O-O {[%emt 0:00:10]} Ne5
{[%emt 0:05:53]} 10. Nf3 {[%emt 0:05:30]} Bg4 {[%emt 0:04:36]} 11. Nbd2 {
[%emt 0:00:16]} N7g6 {[%emt 0:02:10]} 12. Bg5 {[%emt 0:02:51]} Bxf3 {[%emt 0:
00:00]} 13. Bxf6 {[%emt 0:00:37]} Bxd1 {[%emt 0:00:14]} 14. Raxd1 {[%emt 0:00:
00]} gxf6 {[%emt 0:00:12]} 15. g3 {[%emt 0:02:38]} Rg8 {[%emt 0:00:38]} 16. Kh1
{[%emt 0:01:32]} Ng4 {[%emt 0:00:23]} 17. Kg2 {[%emt 0:05:05]} O-O-O {[%emt 0:
00:00]} 18. f3 {[%emt 0:00:49]} Ne3+ {[%emt 0:00:32]} 19. Kh1 {[%emt 0:02:08]}
Nxc2 {[%emt 0:01:07]} 20. Rb1 {[%emt 0:01:52]} Ne3 {[%emt 0:00:25]} 21. Rfe1 {
[%emt 0:01:36]} Ne5 {[%emt 0:00:45]} 22. b4 {[%emt 0:01:48]} Bb6 {[%emt 0:00:
00]} 23. Rb3 {[%emt 0:08:21]} N5c4 {[%emt 0:00:28]} 24. Nxc4 Nxc4 25. Rf1 {
[%emt 0:02:52]} Nd2 {[%emt 0:00:16]} 26. Rbb1 {[%emt 0:06:24]} Nxf1 {[%emt 0:
00:00]} 27. Rxf1 {[%emt 0:01:22]} a5 {[%emt 0:00:34]} 28. Rb1 {[%emt 0:02:28]}
axb4 {[%emt 0:00:16]} 29. Rxb4 {[%emt 0:00:38]} d5 {[%emt 0:00:14]} 30. Rb1 {
[%emt 0:01:03]} dxe4 {[%emt 0:00:11]} 31. fxe4 {[%emt 0:00:27]} Rd2 {[%emt 0:
00:00]} 32. a3 {[%emt 0:02:20]} Rgd8 {[%emt 0:00:12]} 33. Rg1 {[%emt 0:01:30]}
Bxg1 {[%emt 0:00:25]} 0-1

[Event "44th Chess Olympiad Women 2022"]
[Site "Chennai"]
[Date "2022.08.07"]
[Round "9.59"]
[White "Burbach, Anya Belle"]
[Black "Nomcebo, Sibisi"]
[Result "1/2-1/2"]
[WhiteElo "1375"]
[BlackElo "1225"]
[Annotator "NA RC"]
[PlyCount "207"]
[EventDate "2022.??.??"]
[TimeControl "60"]

1. e4 {[%emt 0:00:10]} g6 {[%emt 0:00:11]} 2. d4 {[%emt 0:00:23]} Bg7 {[%emt 0:
00:00]} 3. Nf3 {[%emt 0:00:29]} d6 {[%emt 0:00:20]} 4. Be3 {[%emt 0:02:07]} Bg4
{[%emt 0:00:11]} 5. Nbd2 {[%emt 0:02:21]} e5 {[%emt 0:00:28]} 6. Be2 {[%emt 0:
00:00]} Nd7 {[%emt 0:00:56]} 7. h3 {[%emt 0:02:13]} Bxf3 {[%emt 0:00:26]} 8.
Nxf3 {[%emt 0:00:10]} Ngf6 {[%emt 0:01:29]} 9. Bd3 {[%emt 0:01:58]} O-O {
[%emt 0:01:54]} 10. Qd2 {[%emt 0:00:48]} Re8 {[%emt 0:00:38]} 11. O-O {[%emt 0:
00:00]} exd4 {[%emt 0:00:45]} 12. Bxd4 {[%emt 0:00:40]} c5 {[%emt 0:00:45]} 13.
Bxf6 {[%emt 0:11:35]} Bxf6 {[%emt 0:04:29]} 14. c3 {[%emt 0:01:05]} Ne5 {
[%emt 0:01:29]} 15. Nxe5 {[%emt 0:05:16]} Bxe5 {[%emt 0:00:22]} 16. Bc4 {
[%emt 0:04:11]} Rb8 {[%emt 0:02:23]} 17. f4 {[%emt 0:04:14]} Bg7 {[%emt 0:00:
00]} 18. Bd5 {[%emt 0:00:43]} b5 {[%emt 0:00:50]} 19. f5 {[%emt 0:00:42]} g5 {
[%emt 0:01:10]} 20. Qf2 {[%emt 0:02:59]} Bf6 {[%emt 0:00:43]} 21. a3 {[%emt 0:
00:00]} a5 {[%emt 0:00:54]} 22. Qe2 {[%emt 0:01:58]} Qe7 {[%emt 0:05:05]} 23.
Rab1 {[%emt 0:11:03]} Kg7 {[%emt 0:07:30]} 24. Qg4 {[%emt 0:06:43]} Rh8 {
[%emt 0:00:34]} 25. h4 {[%emt 0:06:09]} h5 {[%emt 0:03:04]} 26. Qg3 {[%emt 0:
00:00]} g4 {[%emt 0:00:40]} 27. Qe3 {[%emt 0:04:21]} Rh6 {[%emt 0:05:21]} 28.
g3 {[%emt 0:00:26]} b4 {[%emt 0:01:15]} 29. Qd3 {[%emt 0:04:18]} Rhh8 {[%emt 0:
00:00]} 30. Rfc1 {[%emt 0:01:15]} Rb6 {[%emt 0:06:03]} 31. axb4 {[%emt 0:04:14]
} axb4 {[%emt 0:00:08]} 32. Ra1 {[%emt 0:00:42]} Rc8 {[%emt 0:05:40]} 33. Ra2 {
[%emt 0:03:20]} bxc3 {[%emt 0:02:21]} 34. bxc3 {[%emt 0:00:19]} Qc7 {[%emt 0:
00:00]} 35. Qc4 {[%emt 0:00:40]} Qe7 {[%emt 0:04:05]} 36. Qa4 {[%emt 0:01:32]}
Rcb8 {[%emt 0:03:13]} 37. Qa7 {[%emt 0:02:17]} Qxa7 {[%emt 0:03:22]} 38. Rxa7 {
[%emt 0:00:05]} Rf8 {[%emt 0:00:08]} 39. Rc2 {[%emt 0:01:41]} Rb1+ {[%emt 0:00:
00]} 40. Kg2 {[%emt 0:00:24]} Rd1 {[%emt 0:00:57]} 41. Rd7 {[%emt 0:33:21]} Be5
{[%emt 0:32:30]} 42. f6+ {[%emt 0:00:00]} Kg6 {[%emt 0:00:00]} 43. Rf2 {
[%emt 0:00:00]} Rd3 {[%emt 0:00:00]} 44. Rf5 {[%emt 0:00:00]} Rxg3+ {[%emt 0:
00:00]} 45. Kf2 {[%emt 0:00:00]} Rf3+ {[%emt 0:00:00]} 46. Rxf3 {[%emt 0:00:00]
} gxf3 {[%emt 0:00:00]} 47. Kxf3 {[%emt 0:00:00]} Kxf6 {[%emt 0:00:00]} 48. Ke3
{[%emt 0:00:00]} Kg6 {[%emt 0:00:00]} 49. Kd3 {[%emt 0:00:00]} f5 {[%emt 0:00:
00]} 50. exf5+ {[%emt 0:00:00]} Kxf5 {[%emt 0:00:00]} 51. Bf3 {[%emt 0:00:00]}
Ke6 {[%emt 0:00:00]} 52. Bc6 {[%emt 0:00:00]} Rf4 {[%emt 0:00:00]} 53. Rh7 {
[%emt 0:00:00]} Rxh4 {[%emt 0:00:00]} 54. Be8 {[%emt 0:00:00]} Rh3+ {[%emt 0:
00:00]} 55. Ke2 {[%emt 0:00:00]} Rh2+ {[%emt 0:00:00]} 56. Kf3 {[%emt 0:00:00]}
h4 {[%emt 0:00:00]} 57. c4 {[%emt 0:00:00]} Bg3 {[%emt 0:00:00]} 58. Bc6 {
[%emt 0:00:00]} Ke5 {[%emt 0:00:00]} 59. Re7+ {[%emt 0:01:22]} Kd4 {[%emt 0:00:
00]} 60. Re4+ {[%emt 0:00:22]} Kc3 {[%emt 0:00:00]} 61. Bd5 {[%emt 0:00:28]}
Rd2 {[%emt 0:00:00]} 62. Be6 {[%emt 0:03:10]} Rf2+ {[%emt 0:00:00]} 63. Ke3 {
[%emt 0:01:03]} Rf8 {[%emt 0:00:09]} 64. Bd5 {[%emt 0:01:23]} h3 {[%emt 0:00:
00]} 65. Rg4 {[%emt 0:01:33]} Be5 {[%emt 0:00:18]} 66. Rh4 {[%emt 0:00:27]} h2
{[%emt 0:00:09]} 67. Ke2 {[%emt 0:00:42]} Rf6 {[%emt 0:03:33]} 68. Rh3+ {
[%emt 0:00:28]} Kb4 {[%emt 0:00:21]} 69. Rh4 {[%emt 0:00:15]} Rf5 {[%emt 0:00:
00]} 70. Rh7 {[%emt 0:02:30]} Rf4 {[%emt 0:01:40]} 71. Rb7+ {[%emt 0:01:35]}
Kc3 {[%emt 0:00:31]} 72. Rh7 {[%emt 0:00:17]} Rf6 {[%emt 0:15:08]} 73. Rh3+ {
[%emt 0:00:33]} Kb4 {[%emt 0:00:00]} 74. Rh7 {[%emt 0:00:41]} Rf5 {[%emt 0:00:
00]} 75. Rb7+ {[%emt 0:00:35]} Kc3 {[%emt 0:00:48]} 76. Rb1 {[%emt 0:00:22]}
Bf4 {[%emt 0:00:30]} 77. Bg8 {[%emt 0:00:42]} Kd4 {[%emt 0:01:57]} 78. Rd1+ {
[%emt 0:00:15]} Ke5 {[%emt 0:00:30]} 79. Rd5+ {[%emt 0:00:32]} Ke4 {[%emt 0:00:
00]} 80. Rd1 {[%emt 0:00:07]} Be5 {[%emt 0:00:53]} 81. Bh7 {[%emt 0:00:18]} Kf4
{[%emt 0:00:38]} 82. Bxf5 {[%emt 0:00:07]} Kxf5 {[%emt 0:00:09]} 83. Kf3 {
[%emt 0:00:07]} Bd4 {[%emt 0:00:21]} 84. Kg2 {[%emt 0:01:01]} Be5 {[%emt 0:00:
00]} 85. Re1 {[%emt 0:00:34]} Ke6 {[%emt 0:00:15]} 86. Rd1 {[%emt 0:00:10]} Kd7
{[%emt 0:00:49]} 87. Kh1 {[%emt 0:00:25]} Kc6 {[%emt 0:00:34]} 88. Kg2 {
[%emt 0:00:27]} Kb6 {[%emt 0:00:12]} 89. Rb1+ {[%emt 0:00:27]} Ka5 {[%emt 0:00:
00]} 90. Rb5+ {[%emt 0:00:42]} Ka4 {[%emt 0:00:00]} 91. Kh1 {[%emt 0:00:15]}
Bf4 {[%emt 0:01:07]} 92. Kg2 {[%emt 0:00:37]} d5 {[%emt 0:00:21]} 93. Rxc5 {
[%emt 0:00:10]} d4 {[%emt 0:04:04]} 94. Rb5 {[%emt 0:00:56]} d3 {[%emt 0:00:24]
} 95. Rb1 {[%emt 0:00:13]} d2 {[%emt 0:00:16]} 96. c5 {[%emt 0:00:30]} Ka5 {
[%emt 0:01:50]} 97. c6 {[%emt 0:00:11]} Bc7 {[%emt 0:00:24]} 98. Rd1 {[%emt 0:
00:00]} Bf4 {[%emt 0:00:20]} 99. c7 {[%emt 0:00:49]} Bxc7 {[%emt 0:00:11]} 100.
Rxd2 {[%emt 0:00:05]} Kb5 {[%emt 0:00:17]} 101. Rb2+ {[%emt 0:00:17]} Ka4 {
[%emt 0:00:12]} 102. Kh1 {[%emt 0:00:46]} Ka3 {[%emt 0:00:07]} 103. Rxh2 {
[%emt 0:00:18]} Bxh2 {[%emt 0:00:03]} 104. Kxh2 {[%emt 0:00:07]} 1/2-1/2

[Event "44th Chess Olympiad Women 2022"]
[Site "Chennai"]
[Date "2022.08.07"]
[Round "9.59"]
[White "Dlamini, Nosipho"]
[Black "Buhagiar, Melita Sunan"]
[Result "0-1"]
[WhiteElo "1081"]
[BlackElo "1431"]
[Annotator "NA RC"]
[PlyCount "72"]
[EventDate "2022.??.??"]
[TimeControl "60"]

1. e4 {[%emt 0:00:27]} c5 {[%emt 0:00:08]} 2. Nf3 {[%emt 0:00:10]} d6 {[%emt 0:
00:00]} 3. d4 {[%emt 0:01:01]} cxd4 {[%emt 0:00:07]} 4. Nxd4 {[%emt 0:00:09]}
Nf6 {[%emt 0:00:27]} 5. Nc3 {[%emt 0:00:44]} a6 {[%emt 0:00:38]} 6. Be2 {
[%emt 0:00:48]} e6 {[%emt 0:00:31]} 7. Be3 {[%emt 0:03:52]} Be7 {[%emt 0:01:32]
} 8. Qd3 {[%emt 0:03:14]} Qc7 {[%emt 0:03:24]} 9. O-O {[%emt 0:03:45]} Nbd7 {
[%emt 0:02:15]} 10. Bf3 {[%emt 0:02:42]} O-O {[%emt 0:02:46]} 11. Nce2 {
[%emt 0:02:23]} Ne5 {[%emt 0:01:21]} 12. Qc3 {[%emt 0:10:00]} Qd7 {[%emt 0:00:
00]} 13. Ng3 {[%emt 0:02:16]} b5 {[%emt 0:01:44]} 14. Be2 {[%emt 0:02:29]} Bb7
{[%emt 0:01:10]} 15. f4 {[%emt 0:04:39]} Rac8 {[%emt 0:02:20]} 16. Qb3 {
[%emt 0:02:57]} Nc4 {[%emt 0:02:14]} 17. Bf3 {[%emt 0:03:29]} Nxe3 {[%emt 0:00:
00]} 18. Qxe3 {[%emt 0:00:53]} Bd8 {[%emt 0:13:35]} 19. c3 {[%emt 0:08:59]} Bb6
{[%emt 0:01:59]} 20. e5 {[%emt 0:02:53]} Nd5 {[%emt 0:02:14]} 21. Qd2 {[%emt 0:
00:00]} dxe5 {[%emt 0:05:22]} 22. fxe5 {[%emt 0:01:44]} Qc7 {[%emt 0:02:31]}
23. Rfe1 {[%emt 0:02:21]} Rfd8 {[%emt 0:03:10]} 24. Kh1 {[%emt 0:04:32]} Ne7 {
[%emt 0:01:51]} 25. Bxb7 {[%emt 0:01:39]} Qxb7 {[%emt 0:00:12]} 26. Rad1 {
[%emt 0:01:50]} Nc6 {[%emt 0:01:30]} 27. Re4 {[%emt 0:04:25]} b4 {[%emt 0:00:
00]} 28. Nge2 {[%emt 0:01:49]} Nxd4 {[%emt 0:01:26]} 29. Rxd4 {[%emt 0:02:51]}
Bxd4 {[%emt 0:00:48]} 30. cxd4 {[%emt 0:01:18]} Rc7 {[%emt 0:01:19]} 31. Rf1 {
[%emt 0:01:52]} Rdc8 {[%emt 0:02:02]} 32. Qd3 {[%emt 0:09:01]} Rc2 {[%emt 0:00:
00]} 33. Rb1 {[%emt 0:01:58]} Qb5 {[%emt 0:00:44]} 34. Qxb5 {[%emt 0:05:07]}
axb5 {[%emt 0:00:08]} 35. Ng3 {[%emt 0:01:35]} Rc1+ {[%emt 0:00:07]} 36. Rxc1 {
[%emt 0:01:15]} Rxc1+ {[%emt 0:21:52]} 0-1